Workbook

Sheet INGRESO DE DATOS
A13: 1. LLENE LA INFORMACIÓN DEL ASEGURADO PROPUESTO:
B15: Nombre del Asegurado Titular | D15: NOMBRE DEL CLIENTE
B17: Número de adultos en la póliza | D17: 1 | F17: Número de niños en la póliza | H17: 0
B19: Edad del Asegurado Titular | D19: 29 | F19: Edad del/la cónyuge | H19: 46
G21: Variante con coaseguro fuera del país de residencia | H21: FALSE
A23: 2. SELECCIONE EL PRODUCTO PARA VER LA COTIZACIÓN CORRESPONDIENTE:
B44: 1 | D44: 1

Sheet Bupa Global Premier
A23: Global Premier Health Plan | D23: Nombre del Asegurado Titular | F23: =+'INGRESO DE DATOS'!$D$15 -> NOMBRE DEL CLIENTE
D25: Número de adultos en la póliza | F25: =+'INGRESO DE DATOS'!$D$17 -> 1 | H25: Edad del Asegurado Titular | I25: =+'INGRESO DE DATOS'!$D$19 -> 29
D27: Número de niños en la póliza | F27: =+'INGRESO DE DATOS'!$H$17 -> 0 | H27: Edad del/la conyuge | I27: =+'INGRESO DE DATOS'!$H$19 -> 46
F29: Fecha de la cotización :: | H29: =NOW() -> 2023-03-27T16:19:20.400
H30: FALSE
E31: Deducibles | G31: PLAN 1 | H31: PLAN 2 | I31: PLAN 3 | J31: PLAN 4
E32: En el país de residencia | G32: 2000 | H32: 3500 | I32: 5000 | J32: 10000
E33: Fuera del país de residencia | G33: 2000 | H33: 3500 | I33: 5000 | J33: 10000
E35: Tarifas anuales
E36: Prima para Asegurado Titular | G36: =VLOOKUP($I$25,Tablas!$A$155:$G$221,3,TRUE) -> 3872.96 | H36: =VLOOKUP($I$25,Tablas!$A$155:$G$221,4,TRUE) -> 3233.04 | I36: =VLOOKUP($I$25,Tablas!$A$155:$G$221,5,TRUE) -> 2772.48 | J36: =VLOOKUP($I$25,Tablas!$A$155:$G$221,6,TRUE) -> 2062.64
E37: Prima para conyuge | G37: =IF($F$25=1,0,(VLOOKUP($I$27,Tablas!$A$155:$G$221,3,TRUE))) -> 0 | H37: =IF($F$25=1,0,(VLOOKUP($I$27,Tablas!$A$155:$G$221,4,TRUE))) -> 0 | I37: =IF($F$25=1,0,(VLOOKUP($I$27,Tablas!$A$155:$G$221,5,TRUE))) -> 0 | J37: =IF($F$25=1,0,(VLOOKUP($I$27,Tablas!$A$155:$G$221,6,TRUE))) -> 0
E38: Prima para hijo (s) | G38: =IF($F$27=0,0,(VLOOKUP($F$27,Tablas!$A$222:$G$224,3,TRUE))) -> 0 | H38: =IF($F$27=0,0,(VLOOKUP($F$27,Tablas!$A$222:$G$224,4,TRUE))) -> 0 | I38: =IF($F$27=0,0,(VLOOKUP($F$27,Tablas!$A$222:$G$224,5,TRUE))) -> 0 | J38: =IF($F$27=0,0,(VLOOKUP($F$27,Tablas!$A$222:$G$224,6,TRUE))) -> 0
E39: Total de Prima neta | G39: =SUM(G36:G38) -> 3872.96 | H39: =SUM(H36:H38) -> 3233.04 | I39: 2772.48 | J39: 2062.64
E40: Ajuste por la variante con coaseguro fuera del país de residencia | G40: =IF('INGRESO DE DATOS'!$H$21,G39*-15%,0) -> 0 | H40: =IF('INGRESO DE DATOS'!$H$21,H39*-15%,0) -> 0 | I40: =IF('INGRESO DE DATOS'!$H$21,I39*-15%,0) -> 0 | J40: =IF('INGRESO DE DATOS'!$H$21,J39*-15%,0) -> 0
E41: Tarifa administrativa anual | G41: 75 | H41: 75 | I41: 75 | J41: 75
E42: VAT (5%) : | G42: =(G39+G40)*5% -> 193.648 | H42: =(H39+H40)*5% -> 161.652 | I42: 138.624 | J42: 103.132
E43: ITBMS (7%) | G43: =+G41*7% -> 5.25 | H43: =+H41*7% -> 5.25 | I43: 5.25 | J43: 5.25
E44: TOTAL ANUAL | G44: =SUM(G39:G43) -> 4146.858 | H44: =SUM(H39:H43) -> 3474.942 | I44: 2991.354 | J44: =SUM(J39:J43) -> 2246.022
E46: Tarifas semi anuales
E47: Prima para Asegurado Titular | G47: =VLOOKUP($I$25,Tablas!$A$530:$G$596,3,TRUE) -> 2052.6688 | H47: =VLOOKUP($I$25,Tablas!$A$530:$G$596,4,TRUE) -> 1713.5112 | I47: =VLOOKUP($I$25,Tablas!$A$530:$G$596,5,TRUE) -> 1469.4144 | J47: =VLOOKUP($I$25,Tablas!$A$530:$G$596,6,TRUE) -> 1093.1992
E48: Prima para conyuge | G48: =IF($F$25=1,0,(VLOOKUP($I$27,Tablas!$A$530:$G$596,3,TRUE))) -> 0 | H48: =IF($F$25=1,0,(VLOOKUP($I$27,Tablas!$A$530:$G$596,4,TRUE))) -> 0 | I48: =IF($F$25=1,0,(VLOOKUP($I$27,Tablas!$A$530:$G$596,5,TRUE))) -> 0 | J48: =IF($F$25=1,0,(VLOOKUP($I$27,Tablas!$A$530:$G$596,6,TRUE))) -> 0
E49: Prima para hijo (s) | G49: =IF($F$27=0,0,(VLOOKUP($F$27,Tablas!$A$597:$G$599,3,TRUE))) -> 0 | H49: =IF($F$27=0,0,(VLOOKUP($F$27,Tablas!$A$597:$G$599,4,TRUE))) -> 0 | I49: =IF($F$27=0,0,(VLOOKUP($F$27,Tablas!$A$597:$G$599,5,TRUE))) -> 0 | J49: =IF($F$27=0,0,(VLOOKUP($F$27,Tablas!$A$597:$G$599,6,TRUE))) -> 0
E50: Total de Prima neta | G50: =SUM(G47:G49) -> 2052.6688 | H50: =SUM(H47:H49) -> 1713.5112 | I50: 1469.4144 | J50: 1093.1992
E51: Ajuste por la variante con coaseguro fuera del país de residencia | G51: =IF('INGRESO DE DATOS'!$H$21,G50*-15%,0) -> 0 | H51: =IF('INGRESO DE DATOS'!$H$21,H50*-15%,0) -> 0 | I51: =IF('INGRESO DE DATOS'!$H$21,I50*-15%,0) -> 0 | J51: =IF('INGRESO DE DATOS'!$H$21,J50*-15%,0) -> 0
E52: Tarifa administrativa anual | G52: 75 | H52: 75 | I52: 75 | J52: 75
E53: VAT (5%) : | G53: =(G36+G37+G38+G40)*5%/2 -> 96.824 | H53: =(H36+H37+H38+H40)*5%/2 -> 80.826 | I53: 69.312 | J53: 51.566
E54: ITBMS (7%) | G54: =+G52*7%+ ((G36+G37+G38+G40)*0.06*0.07)/2 -> 13.383216 | H54: =+H52*7%+ ((H36+H37+H38+H40)*0.06*0.07)/2 -> 12.039384 | I54: 11.072208 | J54: 9.581544
E55: TOTAL de primera cuota | G55: =SUM(G50:G54) -> 2237.876016 | H55: =SUM(H50:H54) -> 1881.376584 | I55: 1624.798608 | J55: 1229.346744
E56: Costo de segunda cuota | G56: =((G50+G51)+ G53)+ ((G36+G37+G38+G40)*0.06*0.07)/2 -> 2157.626016 | H56: =((H50+H51)+ H53)+ ((H36+H37+H38+H40)*0.06*0.07)/2 -> 1801.126584 | I56: 1544.548608 | J56: 1149.096744
E57: TOTAL ANUAL | G57: =G55+G56 -> 4395.502032 | H57: =H55+H56 -> 3682.503168 | I57: 3169.347216 | J57: =J55+J56 -> 2378.443488
E59: Tarifas trimestrales
E60: Prima para Asegurado Titular | G60: =VLOOKUP($I$25,Tablas!$A$755:$G$821,3,TRUE) -> 1065.064 | H60: =VLOOKUP($I$25,Tablas!$A$755:$G$821,4,TRUE) -> 889.086 | I60: =VLOOKUP($I$25,Tablas!$A$755:$G$821,5,TRUE) -> 762.432 | J60: =VLOOKUP($I$25,Tablas!$A$755:$G$821,6,TRUE) -> 567.226
E61: Prima para conyuge | G61: =IF($F$25=1,0,(VLOOKUP($I$27,Tablas!$A$755:$G$821,3,TRUE))) -> 0 | H61: =IF($F$25=1,0,(VLOOKUP($I$27,Tablas!$A$755:$G$821,4,TRUE))) -> 0 | I61: =IF($F$25=1,0,(VLOOKUP($I$27,Tablas!$A$755:$G$821,5,TRUE))) -> 0 | J61: =IF($F$25=1,0,(VLOOKUP($I$27,Tablas!$A$755:$G$821,6,TRUE))) -> 0
E62: Prima para hijo (s) | G62: =IF($F$27=0,0,(VLOOKUP($F$27,Tablas!$A$822:$G$824,3,TRUE))) -> 0 | H62: =IF($F$27=0,0,(VLOOKUP($F$27,Tablas!$A$822:$G$824,4,TRUE))) -> 0 | I62: =IF($F$27=0,0,(VLOOKUP($F$27,Tablas!$A$822:$G$824,5,TRUE))) -> 0 | J62: =IF($F$27=0,0,(VLOOKUP($F$27,Tablas!$A$822:$G$824,6,TRUE))) -> 0
E63: Total de Prima neta | G63: =SUM(G60:G62) -> 1065.064 | H63: =SUM(H60:H62) -> 889.086 | I63: 762.432 | J63: 567.226
E64: Ajuste por la variante con coaseguro fuera del país de residencia | G64: =IF('INGRESO DE DATOS'!$H$21,G63*-15%,0) -> 0 | H64: =IF('INGRESO DE DATOS'!$H$21,H63*-15%,0) -> 0 | I64: =IF('INGRESO DE DATOS'!$H$21,I63*-15%,0) -> 0 | J64: =IF('INGRESO DE DATOS'!$H$21,J63*-15%,0) -> 0
E65: Tarifa administrativa anual | G65: 75 | H65: 75 | I65: 75 | J65: 75
E66: VAT (5%) : | G66: =(G36+G37+G38+G40)*5%/4 -> 48.412 | H66: =(H36+H37+H38+H40)*5%/4 -> 40.413 | I66: 34.656 | J66: 25.783
E67: ITBMS (7%) | G67: =+G65*7% + ((G36+G37+G38+G40)*0.1*0.07)/4 -> 12.02768 | H67: =+H65*7% + ((H36+H37+H38+H40)*0.1*0.07)/4 -> 10.90782 | I67: 10.10184 | J67: 8.85962
E68: TOTAL de primera cuota | G68: =SUM(G63:G67) -> 1200.50368 | H68: =SUM(H63:H67) -> 1015.40682 | I68: 882.18984 | J68: 676.86862
E69: Costo de tarifa trimestral 2 a 4 | G69: =((G63+G64)+ G66)+((G36+G37+G38+G40)*0.1*0.07)/4 -> 1120.25368 | H69: =((H63+H64)+ H66)+((H36+H37+H38+H40)*0.1*0.07)/4 -> 935.15682 | I69: 801.93984 | J69: 596.61862
E70: TOTAL ANUAL | G70: =G68+(G69*3) -> 4561.26472 | H70: =H68+(H69*3) -> 3820.87728 | I70: 3288.00936 | J70: =J68+(J69*3) -> 2466.72448
E72: Tarifas mensuales
E73: Prima para Asegurado Titular | G73: =VLOOKUP($I$25,Tablas!$A$229:$G$295,3,TRUE) -> 361.4762667 | H73: =VLOOKUP($I$25,Tablas!$A$229:$G$295,4,TRUE) -> 301.7504 | I73: =VLOOKUP($I$25,Tablas!$A$229:$G$295,5,TRUE) -> 258.7648 | J73: =VLOOKUP($I$25,Tablas!$A$229:$G$295,6,TRUE) -> 192.5130667
E74: Prima para conyuge | G74: =IF($F$25=1,0,(VLOOKUP($I$27,Tablas!$A$229:$G$295,3,TRUE))) -> 0 | H74: =IF($F$25=1,0,(VLOOKUP($I$27,Tablas!$A$229:$G$295,4,TRUE))) -> 0 | I74: =IF($F$25=1,0,(VLOOKUP($I$27,Tablas!$A$229:$G$295,5,TRUE))) -> 0 | J74: =IF($F$25=1,0,(VLOOKUP($I$27,Tablas!$A$229:$G$295,6,TRUE))) -> 0
E75: Prima para hijo (s) | G75: =IF($F$27=0,0,(VLOOKUP($F$27,Tablas!$A$296:$G$298,3,TRUE))) -> 0 | H75: =IF($F$27=0,0,(VLOOKUP($F$27,Tablas!$A$296:$G$298,4,TRUE))) -> 0 | I75: =IF($F$27=0,0,(VLOOKUP($F$27,Tablas!$A$296:$G$298,5,TRUE))) -> 0 | J75: =IF($F$27=0,0,(VLOOKUP($F$27,Tablas!$A$296:$G$298,6,TRUE))) -> 0
E76: Total de Prima neta | G76: =SUM(G73:G75) -> 361.4762667 | H76: =SUM(H73:H75) -> 301.7504 | I76: 258.7648 | J76: 192.5130667
E77: Ajuste por la variante con coaseguro fuera del país de residencia | G77: =IF('INGRESO DE DATOS'!$H$21,G76*-15%,0) -> 0 | H77: =IF('INGRESO DE DATOS'!$H$21,H76*-15%,0) -> 0 | I77: =IF('INGRESO DE DATOS'!$H$21,I76*-15%,0) -> 0 | J77: =IF('INGRESO DE DATOS'!$H$21,J76*-15%,0) -> 0
E78: Tarifa administrativa anual | G78: 75 | H78: 75 | I78: 75 | J78: 75
E79: VAT (5%) : | G79: =(G36+G37+G38+G40)*5%/12 -> 16.13733333 | H79: =(H36+H37+H38+H40)*5%/12 -> 13.471 | I79: 11.552 | J79: 8.594333333
E80: ITBMS (7%) | G80: =G78*7% + ((G36+G37+G38+G40)*0.12*0.07)/12 -> 7.961072 | H80: =H78*7% + ((H36+H37+H38+H40)*0.12*0.07)/12 -> 7.513128 | I80: 7.190736 | J80: 6.693848
E81: TOTAL de primera cuota | G81: =SUM(G76:G80) -> 460.574672 | H81: =SUM(H76:H80) -> 397.734528 | I81: 352.507536 | J81: 282.801248
E82: Costo de Tarifa mensual de 2 a 12 | G82: =((G76 + G77)+G79)+((G36+G37+G38+G40)*0.12*0.07)/12 -> 380.324672 | H82: =((H76 + H77)+H79)+((H36+H37+H38+H40)*0.12*0.07)/12 -> 317.484528 | I82: 272.257536 | J82: 202.551248
E83: TOTAL ANUAL | G83: =G81+(G82*11) -> 4644.146064 | H83: =H81+(H82*11) -> 3890.064336 | I83: 3347.340432 | J83: =J81+(J82*11) -> 2510.864976
E85: Tarifas en US$ - Efectivas a partir del 1ro de Enero, 2020

Sheet Bupa Global Select
A23: Bupa Global Select Health Plan | D23: Nombre del Asegurado Titular | F23: =+'INGRESO DE DATOS'!$D$15 -> NOMBRE DEL CLIENTE
D25: Número de adultos en la póliza | F25: =+'INGRESO DE DATOS'!$D$17 -> 1 | H25: Edad del Asegurado Titular | I25: =+'INGRESO DE DATOS'!$D$19 -> 29
D27: Número de niños en la póliza | F27: =+'INGRESO DE DATOS'!$H$17 -> 0 | H27: Edad del/la conyuge | I27: =+'INGRESO DE DATOS'!$H$19 -> 46
F29: Fecha de la cotización: | H29: =NOW() -> 2023-03-27T16:19:20.400
H30: FALSE
E31: Deducibles | G31: PLAN 1 | H31: PLAN 2 | I31: PLAN 3 | J31: PLAN 4
E32: En el país de residencia | G32: 2000 | H32: 3500 | I32: 5000 | J32: 10000
E33: Fuera del país de residencia | G33: 2000 | H33: 3500 | I33: 5000 | J33: 10000
E35: Tarifas anuales
E36: Prima para Asegurado Titular | G36: =VLOOKUP($I$25,Tablas!$A$305:$G$371,3,TRUE) -> 2669.12 | H36: =VLOOKUP($I$25,Tablas!$A$305:$G$371,4,TRUE) -> 2233.64 | I36: =VLOOKUP($I$25,Tablas!$A$305:$G$371,5,TRUE) -> 1997.28 | J36: =VLOOKUP($I$25,Tablas!$A$305:$G$371,6,TRUE) -> 1485.8
E37: Prima para conyuge | G37: =IF($F$25=1,0,(VLOOKUP($I$27,Tablas!$A$305:$G$371,3,TRUE))) -> 0 | H37: =IF($F$25=1,0,(VLOOKUP($I$27,Tablas!$A$305:$G$371,4,TRUE))) -> 0 | I37: =IF($F$25=1,0,(VLOOKUP($I$27,Tablas!$A$305:$G$371,5,TRUE))) -> 0 | J37: =IF($F$25=1,0,(VLOOKUP($I$27,Tablas!$A$305:$G$371,6,TRUE))) -> 0
E38: Prima para hijo (s) | G38: =IF($F$27=0,0,(VLOOKUP($F$27,Tablas!$A$372:$G$374,3,TRUE))) -> 0 | H38: =IF($F$27=0,0,(VLOOKUP($F$27,Tablas!$A$372:$G$374,4,TRUE))) -> 0 | I38: =IF($F$27=0,0,(VLOOKUP($F$27,Tablas!$A$372:$G$374,5,TRUE))) -> 0 | J38: =IF($F$27=0,0,(VLOOKUP($F$27,Tablas!$A$372:$G$374,6,TRUE))) -> 0
E39: Total de Prima neta | G39: =SUM(G36:G38) -> 2669.12 | H39: =SUM(H36:H38) -> 2233.64 | I39: 1997.28 | J39: 1485.8
E40: Ajuste por la variante con coaseguro fuera del país de residencia | G40: =IF('INGRESO DE DATOS'!$H$21,G39*-15%,0) -> 0 | H40: =IF('INGRESO DE DATOS'!$H$21,H39*-15%,0) -> 0 | I40: =IF('INGRESO DE DATOS'!$H$21,I39*-15%,0) -> 0 | J40: =IF('INGRESO DE DATOS'!$H$21,J39*-15%,0) -> 0
E41: Tarifa administrativa anual | G41: 75 | H41: 75 | I41: 75 | J41: 75
E42: VAT (5%) : | G42: =(G39+G40)*5% -> 133.456 | H42: =(H39+H40)*5% -> 111.682 | I42: 99.864 | J42: 74.29
E43: ITBMS (7%) | G43: =+G41*7% -> 5.25 | H43: =+H41*7% -> 5.25 | I43: 5.25 | J43: 5.25
E44: TOTAL ANUAL | G44: =SUM(G39:G43) -> 2882.826 | H44: =SUM(H39:H43) -> 2425.572 | I44: 2177.394 | J44: =SUM(J39:J43) -> 1640.34
E46: Tarifas semi anuales
E47: Prima para Asegurado Titular | G47: =VLOOKUP($I$25,Tablas!$A$605:$G$671,3,TRUE) -> 1414.6336 | H47: =VLOOKUP($I$25,Tablas!$A$605:$G$671,4,TRUE) -> 1183.8292 | I47: =VLOOKUP($I$25,Tablas!$A$605:$G$671,5,TRUE) -> 1058.5584 | J47: =VLOOKUP($I$25,Tablas!$A$605:$G$671,6,TRUE) -> 787.474
E48: Prima para conyuge | G48: =IF($F$25=1,0,(VLOOKUP($I$27,Tablas!$A$605:$G$671,3,TRUE))) -> 0 | H48: =IF($F$25=1,0,(VLOOKUP($I$27,Tablas!$A$605:$G$671,4,TRUE))) -> 0 | I48: =IF($F$25=1,0,(VLOOKUP($I$27,Tablas!$A$605:$G$671,5,TRUE))) -> 0 | J48: =IF($F$25=1,0,(VLOOKUP($I$27,Tablas!$A$605:$G$671,6,TRUE))) -> 0
E49: Prima para hijo (s) | G49: =IF($F$27=0,0,(VLOOKUP($F$27,Tablas!$A$672:$G$674,3,TRUE))) -> 0 | H49: =IF($F$27=0,0,(VLOOKUP($F$27,Tablas!$A$672:$G$674,4,TRUE))) -> 0 | I49: =IF($F$27=0,0,(VLOOKUP($F$27,Tablas!$A$672:$G$674,5,TRUE))) -> 0 | J49: =IF($F$27=0,0,(VLOOKUP($F$27,Tablas!$A$672:$G$674,6,TRUE))) -> 0
E50: Total de Prima neta | G50: =SUM(G47:G49) -> 1414.6336 | H50: =SUM(H47:H49) -> 1183.8292 | I50: 1058.5584 | J50: 787.474
E51: Ajuste por la variante con coaseguro fuera del país de residencia | G51: =IF('INGRESO DE DATOS'!$H$21,G50*-15%,0) -> 0 | H51: =IF('INGRESO DE DATOS'!$H$21,H50*-15%,0) -> 0 | I51: =IF('INGRESO DE DATOS'!$H$21,I50*-15%,0) -> 0 | J51: =IF('INGRESO DE DATOS'!$H$21,J50*-15%,0) -> 0
E52: Tarifa administrativa anual | G52: 75 | H52: 75 | I52: 75 | J52: 75
E53: VAT (5%) : | G53: =(G36+G37+G38+G40)*5%/2 -> 66.728 | H53: =(H36+H37+H38+H40)*5%/2 -> 55.841 | I53: 49.932 | J53: 37.145
E54: ITBMS (7%) | G54: =G52*7% + ((G36+G37+G38+G40)*0.06*0.07)/2 -> 10.855152 | H54: =H52*7% + ((H36+H37+H38+H40)*0.06*0.07)/2 -> 9.940644 | I54: 9.444288 | J54: 8.37018
E55: TOTAL de primera cuota | G55: =SUM(G50:G54) -> 1567.216752 | H55: =SUM(H50:H54) -> 1324.610844 | I55: 1192.934688 | J55: 907.98918
E56: Costo de segunda cuota | G56: =(G50+G51)+G53+((G36+G37+G38+G40)*0.06*0.07)/2 -> 1486.966752 | H56: =(H50+H51)+H53+((H36+H37+H38+H40)*0.06*0.07)/2 -> 1244.360844 | I56: 1112.684688 | J56: 827.73918
E57: TOTAL ANUAL | G57: =G55+G56 -> 3054.183504 | H57: =H55+H56 -> 2568.971688 | I57: 2305.619376 | J57: =J55+J56 -> 1735.72836
E59: Tarifas trimestrales
E60: Prima para Asegurado Titular | G60: =VLOOKUP($I$25,Tablas!$A$830:$G$896,3,TRUE) -> 734.008 | H60: =VLOOKUP($I$25,Tablas!$A$830:$G$896,4,TRUE) -> 614.251 | I60: =VLOOKUP($I$25,Tablas!$A$830:$G$896,5,TRUE) -> 549.252 | J60: =VLOOKUP($I$25,Tablas!$A$830:$G$896,6,TRUE) -> 408.595
E61: Prima para conyuge | G61: =IF($F$25=1,0,(VLOOKUP($I$27,Tablas!$A$830:$G$896,3,TRUE))) -> 0 | H61: =IF($F$25=1,0,(VLOOKUP($I$27,Tablas!$A$830:$G$896,4,TRUE))) -> 0 | I61: =IF($F$25=1,0,(VLOOKUP($I$27,Tablas!$A$830:$G$896,5,TRUE))) -> 0 | J61: =IF($F$25=1,0,(VLOOKUP($I$27,Tablas!$A$830:$G$896,6,TRUE))) -> 0
E62: Prima para hijo (s) | G62: =IF($F$27=0,0,(VLOOKUP($F$27,Tablas!$A$897:$G$899,3,TRUE))) -> 0 | H62: =IF($F$27=0,0,(VLOOKUP($F$27,Tablas!$A$897:$G$899,4,TRUE))) -> 0 | I62: =IF($F$27=0,0,(VLOOKUP($F$27,Tablas!$A$897:$G$899,5,TRUE))) -> 0 | J62: =IF($F$27=0,0,(VLOOKUP($F$27,Tablas!$A$897:$G$899,6,TRUE))) -> 0
E63: Total de Prima neta | G63: =SUM(G60:G62) -> 734.008 | H63: =SUM(H60:H62) -> 614.251 | I63: 549.252 | J63: 408.595
E64: Ajuste por la variante con coaseguro fuera del país de residencia | G64: =IF('INGRESO DE DATOS'!$H$21,G63*-15%,0) -> 0 | H64: =IF('INGRESO DE DATOS'!$H$21,H63*-15%,0) -> 0 | I64: =IF('INGRESO DE DATOS'!$H$21,I63*-15%,0) -> 0 | J64: =IF('INGRESO DE DATOS'!$H$21,J63*-15%,0) -> 0
E65: Tarifa administrativa anual | G65: 75 | H65: 75 | I65: 75 | J65: 75
E66: VAT (5%) : | G66: =(G36+G37+G38+G40)*5%/4 -> 33.364 | H66: =(H36+H37+H38+H40)*5%/4 -> 27.9205 | I66: 24.966 | J66: 18.5725
E67: ITBMS (7%) | G67: =+G65*7%+ ((G36+G37+G38+G40)*0.1*0.07)/4 -> 9.92096 | H67: =+H65*7%+ ((H36+H37+H38+H40)*0.1*0.07)/4 -> 9.15887 | I67: 8.74524 | J67: 7.85015
E68: TOTAL de primera cuota | G68: =SUM(G63:G67) -> 852.29296 | H68: =SUM(H63:H67) -> 726.33037 | I68: 657.96324 | J68: 510.01765
E69: Costo de tarifa trimestral 2 a 4 | G69: =(G63+G64)+G66+((G36+G37+G38+G40)*0.1*0.07)/4 -> 772.04296 | H69: =(H63+H64)+H66+((H36+H37+H38+H40)*0.1*0.07)/4 -> 646.08037 | I69: 577.71324 | J69: 429.76765
E70: TOTAL ANUAL | G70: =G68+(G69*3) -> 3168.42184 | H70: =H68+(H69*3) -> 2664.57148 | I70: 2391.10296 | J70: =J68+(J69*3) -> 1799.3206
E72: Tarifas mensuales
E73: Prima para Asegurado Titular | G73: =VLOOKUP($I$25,Tablas!$A$379:$G$445,3,TRUE) -> 249.1178667 | H73: =VLOOKUP($I$25,Tablas!$A$379:$G$445,4,TRUE) -> 208.4730667 | I73: =VLOOKUP($I$25,Tablas!$A$379:$G$445,5,TRUE) -> 186.4128 | J73: =VLOOKUP($I$25,Tablas!$A$379:$G$445,6,TRUE) -> 138.6746667
E74: Prima para conyuge | G74: =IF($F$25=1,0,(VLOOKUP($I$27,Tablas!$A$379:$G$445,3,TRUE))) -> 0 | H74: =IF($F$25=1,0,(VLOOKUP($I$27,Tablas!$A$379:$G$445,4,TRUE))) -> 0 | I74: =IF($F$25=1,0,(VLOOKUP($I$27,Tablas!$A$379:$G$445,5,TRUE))) -> 0 | J74: =IF($F$25=1,0,(VLOOKUP($I$27,Tablas!$A$379:$G$445,6,TRUE))) -> 0
E75: Prima para hijo (s) | G75: =IF($F$27=0,0,(VLOOKUP($F$27,Tablas!$A$446:$G$448,3,TRUE))) -> 0 | H75: =IF($F$27=0,0,(VLOOKUP($F$27,Tablas!$A$446:$G$448,4,TRUE))) -> 0 | I75: =IF($F$27=0,0,(VLOOKUP($F$27,Tablas!$A$446:$G$448,5,TRUE))) -> 0 | J75: =IF($F$27=0,0,(VLOOKUP($F$27,Tablas!$A$446:$G$448,6,TRUE))) -> 0
E76: Total de Prima neta | G76: =SUM(G73:G75) -> 249.1178667 | H76: =SUM(H73:H75) -> 208.4730667 | I76: 186.4128 | J76: 138.6746667
E77: Ajuste por la variante con coaseguro fuera del país de residencia | G77: =IF('INGRESO DE DATOS'!$H$21,G76*-15%,0) -> 0 | H77: =IF('INGRESO DE DATOS'!$H$21,H76*-15%,0) -> 0 | I77: =IF('INGRESO DE DATOS'!$H$21,I76*-15%,0) -> 0 | J77: =IF('INGRESO DE DATOS'!$H$21,J76*-15%,0) -> 0
E78: Tarifa administrativa anual | G78: 75 | H78: 75 | I78: 75 | J78: 75
E79: VAT (5%) : | G79: =(G36+G37+G38+G40)*5%/12 -> 11.12133333 | H79: =(H36+H37+H38+H40)*5%/12 -> 9.306833333 | I79: 8.322 | J79: 6.190833333
E80: ITBMS (7%) | G80: =+G78*7% + ((G36+G37+G38+G40)*0.12*0.07)/12 -> 7.118384 | H80: =+H78*7% + ((H36+H37+H38+H40)*0.12*0.07)/12 -> 6.813548 | I80: 6.648096 | J80: 6.29006
E81: TOTAL de primera cuota | G81: =SUM(G76:G80) -> 342.357584 | H81: =SUM(H76:H80) -> 299.593448 | I81: 276.382896 | J81: 226.15556
E82: Costo de Tarifa mensual de 2 a 12 | G82: =((G76 + G77)+G79)+((G36+G37+G38+G40)*0.12*0.07)/12 -> 262.107584 | H82: =((H76 + H77)+H79)+((H36+H37+H38+H40)*0.12*0.07)/12 -> 219.343448 | I82: 196.132896 | J82: 145.90556
E83: TOTAL ANUAL | G83: =G81+(G82*11) -> 3225.541008 | H83: =H81+(H82*11) -> 2712.371376 | I83: 2433.844752 | J83: =J81+(J82*11) -> 1831.11672
E85: Tarifas en US$ - Efectivas a partir del 1ro de Enero, 2020

Sheet Resumen tarifas
A17: Cotizador de Seguro Médico - Bupa Global Health Plans
A19: Nombre del Asegurado Titular | C19: =+'INGRESO DE DATOS'!$D$15 -> NOMBRE DEL CLIENTE
A22: Número de adultos en la póliza | C22: =+'INGRESO DE DATOS'!$D$17 -> 1 | E22: Edad del Asegurado Titular | G22: =+'INGRESO DE DATOS'!$D$19 -> 29
A25: Número de niños en la póliza | C25: =+'INGRESO DE DATOS'!$H$17 -> 0 | E25: Edad del/la cónyuge | G25: =+'INGRESO DE DATOS'!$H$19 -> 46
D28: FECHA DE LA COTIZACIÓN : | E28: =NOW() -> 2023-03-27T16:19:20.400
A30: Bupa Global Ultimtate Health Plan
A31: DEDUCIBLES | C31: PLAN 1 | D31: PLAN 2 | E31: PLAN 3
A32: En el país de residencia | C32: 0 | D32: 1000 | E32: 2000
A33: Fuera del país de residencia | C33: 0 | D33: 1000 | E33: 2000
C34: Tarifas anuales
C35: =#REF! ->  | D35: =#REF! ->  | E35: =#REF! -> 
C36: Tarifas semi anuales
C37: =#REF! ->  | D37: =#REF! ->  | E37: =#REF! -> 
C38: Tarifas trimestrales
C39: =#REF! ->  | D39: =#REF! ->  | E39: =#REF! -> 
C40: Tarifas mensuales
C41: =#REF! ->  | D41: =#REF! ->  | E41: =#REF! -> 
A42: Ahorros en tarifas de prima para niños* | C42: =#REF! ->  | D42: =#REF! ->  | E42: =#REF! -> 
A44: Bupa Global Elite Health Plan
A45: DEDUCIBLES | D45: PLAN 1 | E45: PLAN 2 | F45: PLAN 3 | G45: PLAN 4 | H45: PLAN 5
A46: En el país de residencia | D46: 1000 | E46: 2000 | F46: 3500 | G46: 5000 | H46: 10000
A47: Fuera del país de residencia | D47: 1000 | E47: 2000 | F47: 3500 | G47: 5000 | H47: 10000
D48: Tarifas anuales
D49: =+#REF! ->  | E49: =+#REF! ->  | F49: =+#REF! ->  | G49: =+#REF! ->  | H49: =+#REF! -> 
D50: Tarifas semi anuales
D51: =+#REF! ->  | E51: =+#REF! ->  | F51: =+#REF! ->  | G51: =+#REF! ->  | H51: =+#REF! -> 
D52: Tarifas trimestrales
D53: =+#REF! ->  | E53: =+#REF! ->  | F53: =+#REF! ->  | G53: =+#REF! ->  | H53: =+#REF! -> 
D54: Tarifas mensuales
D55: =+#REF! ->  | E55: =+#REF! ->  | F55: =+#REF! ->  | G55: =+#REF! ->  | H55: =+#REF! -> 
A56: Ahorros en tarifas de prima para niños* | D56: =+#REF! ->  | E56: =+#REF! ->  | F56: =+#REF! ->  | G56: =+#REF! ->  | H56: =+#REF! -> 
A58: Bupa Global Premier Health Plan
A59: DEDUCIBLES | E59: PLAN 1 | F59: PLAN 2 | G59: PLAN 3 | H59: PLAN 4
A60: En el país de residencia | E60: 2000 | F60: 3500 | G60: 5000 | H60: 10000
A61: Fuera del país de residencia | E61: 2000 | F61: 3500 | G61: 5000 | H61: 10000
E62: Tarifas anuales
E63: =+'Bupa Global Premier'!G44 -> 4146.858 | F63: =+'Bupa Global Premier'!H44 -> 3474.942 | G63: =+'Bupa Global Premier'!I44 -> 2991.354 | H63: =+'Bupa Global Premier'!J44 -> 2246.022
E64: Tarifas semi anuales
E65: =+'Bupa Global Premier'!G56 -> 2157.626016 | F65: =+'Bupa Global Premier'!H56 -> 1801.126584 | G65: =+'Bupa Global Premier'!I56 -> 1544.548608 | H65: =+'Bupa Global Premier'!J56 -> 1149.096744
E66: Tarifas trimestrales
E67: =+'Bupa Global Premier'!G69 -> 1120.25368 | F67: =+'Bupa Global Premier'!H69 -> 935.15682 | G67: =+'Bupa Global Premier'!I69 -> 801.93984 | H67: =+'Bupa Global Premier'!J69 -> 596.61862
E68: Tarifas mensuales
E69: =+'Bupa Global Premier'!G82 -> 380.324672 | F69: =+'Bupa Global Premier'!H82 -> 317.484528 | G69: =+'Bupa Global Premier'!I82 -> 272.257536 | H69: =+'Bupa Global Premier'!J82 -> 202.551248
A71: Bupa Global Select Health Plan
A72: DEDUCIBLES | E72: PLAN 1 | F72: PLAN 2 | G72: PLAN 3 | H72: PLAN 4
A73: En el país de residencia | E73: 2000 | F73: 3500 | G73: 5000 | H73: 10000
A74: Fuera del país de residencia | E74: 2000 | F74: 3500 | G74: 5000 | H74: 10000
E75: Tarifas anuales
E76: =+'Bupa Global Select'!G44 -> 2882.826 | F76: =+'Bupa Global Select'!H44 -> 2425.572 | G76: =+'Bupa Global Select'!I44 -> 2177.394 | H76: =+'Bupa Global Select'!J44 -> 1640.34
E77: Tarifas semi anuales
E78: =+'Bupa Global Select'!G56 -> 1486.966752 | F78: =+'Bupa Global Select'!H56 -> 1244.360844 | G78: =+'Bupa Global Select'!I56 -> 1112.684688 | H78: =+'Bupa Global Select'!J56 -> 827.73918
E79: Tarifas trimestrales
E80: =+'Bupa Global Select'!G69 -> 772.04296 | F80: =+'Bupa Global Select'!H69 -> 646.08037 | G80: =+'Bupa Global Select'!I69 -> 577.71324 | H80: =+'Bupa Global Select'!J69 -> 429.76765
E81: Tarifas mensuales
E82: =+'Bupa Global Select'!G82 -> 262.107584 | F82: =+'Bupa Global Select'!H82 -> 219.343448 | G82: =+'Bupa Global Select'!I82 -> 196.132896 | H82: =+'Bupa Global Select'!J82 -> 145.90556
A84: Bupa Global Major Medical Health Plan
A85: DEDUCIBLES | C85: PLAN 1 | D85: PLAN 2
A86: En el país de residencia | C86: 10000 | D86: 20000
A87: Fuera del país de residencia | C87: 10000 | D87: 20000
C88: Tarifas anuales
C89: =#REF! ->  | D89: =#REF! -> 
C90: Tarifas semi anuales
C91: =#REF! ->  | D91: =#REF! -> 
C92: Tarifas trimestrales
C93: =#REF! ->  | D93: =#REF! -> 
C94: Tarifas mensuales
C95: =#REF! ->  | D95: =#REF! -> 
A97: Una tarifa administrativa de US$75 se cargará automáticamente al primer pago
A98: *Basado en un modo de pago anual
A100: Tarifas en US$ - Efectivas a partir del 1ro de Enero, 2020

Sheet Tablas (hidden)
A2: BUPA GLOBAL ELITE | I2: FACTOR MENSUAL: | K2: 0.09333333333
A3: TARIFAS ANUALES | I3: FACTOR TRIMESTRAL: | K3: 0.275
A4: EDAD | I4: FACTOR SEMIANUAL: | K4: 0.53
C5: 1000 | D5: 2000 | E5: 3500 | F5: 5000 | G5: 10000
A6: 18 | C6: =O6 -> 6305.3 | D6: =P6 -> 4516.05 | E6: 3824.15 | F6: 3315.85 | G6: 2572.1 | I6: 7418 | J6: 5313 | K6: 4499 | L6: 3901 | M6: 3026 | O6: =I6*0.85 -> 6305.3 | P6: =J6*0.85 -> 4516.05 | Q6: 3824.15 | R6: 3315.85 | S6: 2572.1
A7: 19 | C7: =O7 -> 6388.6 | D7: =P7 -> 4570.45 | E7: =Q7 -> 3864.1 | F7: =R7 -> 3351.55 | G7: =S7 -> 2599.3 | I7: 7516 | J7: 5377 | K7: 4546 | L7: 3943 | M7: 3058 | O7: =I7*0.85 -> 6388.6 | P7: 4570.45 | Q7: 3864.1 | R7: 3351.55 | S7: 2599.3
A8: 20 | C8: 6473.6 | D8: 4628.25 | E8: 3907.45 | F8: 3388.1 | G8: 2627.35 | I8: 7616 | J8: 5445 | K8: 4597 | L8: 3986 | M8: 3091 | O8: 6473.6 | P8: 4628.25 | Q8: 3907.45 | R8: 3388.1 | S8: 2627.35
A9: 21 | C9: 6561.15 | D9: 4686.9 | E9: 3951.65 | F9: 3426.35 | G9: 2657.1 | I9: 7719 | J9: 5514 | K9: 4649 | L9: 4031 | M9: 3126 | O9: 6561.15 | P9: 4686.9 | Q9: 3951.65 | R9: 3426.35 | S9: 2657.1
A10: 22 | C10: 6652.1 | D10: 4748.1 | E10: 3996.7 | F10: 3465.45 | G10: 2686.85 | I10: 7826 | J10: 5586 | K10: 4702 | L10: 4077 | M10: 3161 | O10: 6652.1 | P10: 4748.1 | Q10: 3996.7 | R10: 3465.45 | S10: 2686.85
A11: 23 | C11: 6748.15 | D11: 4809.3 | E11: 4045.15 | F11: 3507.95 | G11: 2720.85 | I11: 7939 | J11: 5658 | K11: 4759 | L11: 4127 | M11: 3201 | O11: 6748.15 | P11: 4809.3 | Q11: 4045.15 | R11: 3507.95 | S11: 2720.85
A12: 24 | C12: 6843.35 | D12: 4874.75 | E12: 4093.6 | F12: 3549.6 | G12: 2753.15 | I12: 8051 | J12: 5735 | K12: 4816 | L12: 4176 | M12: 3239 | O12: 6843.35 | P12: 4874.75 | Q12: 4093.6 | R12: 3549.6 | S12: 2753.15
A13: 25 | C13: 6942.8 | D13: 4942.75 | E13: 4143.75 | F13: 3593.8 | G13: 2787.15 | I13: 8168 | J13: 5815 | K13: 4875 | L13: 4228 | M13: 3279 | O13: 6942.8 | P13: 4942.75 | Q13: 4143.75 | R13: 3593.8 | S13: 2787.15
A14: 26 | C14: 7085.6 | D14: 5039.65 | E14: 4217.7 | F14: 3658.4 | G14: 2836.45 | I14: 8336 | J14: 5929 | K14: 4962 | L14: 4304 | M14: 3337 | O14: 7085.6 | P14: 5039.65 | Q14: 4217.7 | R14: 3658.4 | S14: 2836.45
A15: 27 | C15: 7234.35 | D15: 5140.8 | E15: 4295.9 | F15: 3723.85 | G15: 2889.15 | I15: 8511 | J15: 6048 | K15: 5054 | L15: 4381 | M15: 3399 | O15: 7234.35 | P15: 5140.8 | Q15: 4295.9 | R15: 3723.85 | S15: 2889.15
A16: 28 | C16: 7387.35 | D16: 5244.5 | E16: 4375.8 | F16: 3794.4 | G16: 2941.85 | I16: 8691 | J16: 6170 | K16: 5148 | L16: 4464 | M16: 3461 | O16: 7387.35 | P16: 5244.5 | Q16: 4375.8 | R16: 3794.4 | S16: 2941.85
A17: 29 | C17: 7548 | D17: 5353.3 | E17: 4459.95 | F17: 3867.5 | G17: 2999.65 | I17: 8880 | J17: 6298 | K17: 5247 | L17: 4550 | M17: 3529 | O17: 7548 | P17: 5353.3 | Q17: 4459.95 | R17: 3867.5 | S17: 2999.65
A18: 30 | C18: 7712.9 | D18: 5468.05 | E18: 4548.35 | F18: 3944 | G18: 3059.15 | I18: 9074 | J18: 6433 | K18: 5351 | L18: 4640 | M18: 3599 | O18: 7712.9 | P18: 5468.05 | Q18: 4548.35 | R18: 3944 | S18: 3059.15
A19: 31 | C19: 7883.75 | D19: 5584.5 | E19: 4640.15 | F19: 4023.05 | G19: 3121.2 | I19: 9275 | J19: 6570 | K19: 5459 | L19: 4733 | M19: 3672 | O19: 7883.75 | P19: 5584.5 | Q19: 4640.15 | R19: 4023.05 | S19: 3121.2
A20: 32 | C20: 8058.85 | D20: 5706.05 | E20: 4732.8 | F20: 4103.8 | G20: 3181.55 | I20: 9481 | J20: 6713 | K20: 5568 | L20: 4828 | M20: 3743 | O20: 8058.85 | P20: 5706.05 | Q20: 4732.8 | R20: 4103.8 | S20: 3181.55
A21: 33 | C21: 8239.9 | D21: 5831 | E21: 4831.4 | F21: 4188.8 | G21: 3249.55 | I21: 9694 | J21: 6860 | K21: 5684 | L21: 4928 | M21: 3823 | O21: 8239.9 | P21: 5831 | Q21: 4831.4 | R21: 4188.8 | S21: 3249.55
A22: 34 | C22: 8426.9 | D22: 5960.2 | E22: 4931.7 | F22: 4276.35 | G22: 3315.85 | I22: 9914 | J22: 7012 | K22: 5802 | L22: 5031 | M22: 3901 | O22: 8426.9 | P22: 5960.2 | Q22: 4931.7 | R22: 4276.35 | S22: 3315.85
A23: 35 | C23: 8617.3 | D23: 6092.8 | E23: 5037.1 | F23: 4368.15 | G23: 3388.1 | I23: 10138 | J23: 7168 | K23: 5926 | L23: 5139 | M23: 3986 | O23: 8617.3 | P23: 6092.8 | Q23: 5037.1 | R23: 4368.15 | S23: 3388.1
A24: 36 | C24: 8814.5 | D24: 6229.65 | E24: 5144.2 | F24: 4459.95 | G24: 3459.5 | I24: 10370 | J24: 7329 | K24: 6052 | L24: 5247 | M24: 4070 | O24: 8814.5 | P24: 6229.65 | Q24: 5144.2 | R24: 4459.95 | S24: 3459.5
A25: 37 | C25: 9017.65 | D25: 6372.45 | E25: 5254.7 | F25: 4557.7 | G25: 3534.3 | I25: 10609 | J25: 7497 | K25: 6182 | L25: 5362 | M25: 4158 | O25: 9017.65 | P25: 6372.45 | Q25: 5254.7 | R25: 4557.7 | S25: 3534.3
A26: 38 | C26: 9225.05 | D26: 6516.1 | E26: 5369.45 | F26: 4657.15 | G26: 3611.65 | I26: 10853 | J26: 7666 | K26: 6317 | L26: 5479 | M26: 4249 | O26: 9225.05 | P26: 6516.1 | Q26: 5369.45 | R26: 4657.15 | S26: 3611.65
A27: 39 | C27: 9439.25 | D27: 6666.55 | E27: 5487.6 | F27: 4758.3 | G27: 3689.85 | I27: 11105 | J27: 7843 | K27: 6456 | L27: 5598 | M27: 4341 | O27: 9439.25 | P27: 6666.55 | Q27: 5487.6 | R27: 4758.3 | S27: 3689.85
A28: 40 | C28: 9657.7 | D28: 6819.55 | E28: 5608.3 | F28: 4862.85 | G28: 3772.3 | I28: 11362 | J28: 8023 | K28: 6598 | L28: 5721 | M28: 4438 | O28: 9657.7 | P28: 6819.55 | Q28: 5608.3 | R28: 4862.85 | S28: 3772.3
A29: 41 | C29: 9882.1 | D29: 6976.8 | E29: 5733.25 | F29: 4971.65 | G29: 3856.45 | I29: 11626 | J29: 8208 | K29: 6745 | L29: 5849 | M29: 4537 | O29: 9882.1 | P29: 6976.8 | Q29: 5733.25 | R29: 4971.65 | S29: 3856.45
A30: 42 | C30: 10110.75 | D30: 7137.45 | E30: 5861.6 | F30: 5082.15 | G30: 3942.3 | I30: 11895 | J30: 8397 | K30: 6896 | L30: 5979 | M30: 4638 | O30: 10110.75 | P30: 7137.45 | Q30: 5861.6 | R30: 5082.15 | S30: 3942.3
A31: 43 | C31: 10344.5 | D31: 7304.05 | E31: 5993.35 | F31: 5196.9 | G31: 4030.7 | I31: 12170 | J31: 8593 | K31: 7051 | L31: 6114 | M31: 4742 | O31: 10344.5 | P31: 7304.05 | Q31: 5993.35 | R31: 5196.9 | S31: 4030.7
A32: 44 | C32: 10585.05 | D32: 7471.5 | E32: 6126.8 | F32: 5313.35 | G32: 4121.65 | I32: 12453 | J32: 8790 | K32: 7208 | L32: 6251 | M32: 4849 | O32: 10585.05 | P32: 7471.5 | Q32: 6126.8 | R32: 5313.35 | S32: 4121.65
A33: 45 | C33: 10830.7 | D33: 7645.75 | E33: 6266.2 | F33: 5432.35 | G33: 4213.45 | I33: 12742 | J33: 8995 | K33: 7372 | L33: 6391 | M33: 4957 | O33: 10830.7 | P33: 7645.75 | Q33: 6266.2 | R33: 5432.35 | S33: 4213.45
A34: 46 | C34: 11081.45 | D34: 7822.55 | E34: 6408.15 | F34: 5557.3 | G34: 4308.65 | I34: 13037 | J34: 9203 | K34: 7539 | L34: 6538 | M34: 5069 | O34: 11081.45 | P34: 7822.55 | Q34: 6408.15 | R34: 5557.3 | S34: 4308.65
A35: 47 | C35: 11337.3 | D35: 8005.3 | E35: 6551.8 | F35: 5680.55 | G35: 4406.4 | I35: 13338 | J35: 9418 | K35: 7708 | L35: 6683 | M35: 5184 | O35: 11337.3 | P35: 8005.3 | Q35: 6551.8 | R35: 5680.55 | S35: 4406.4
A36: 48 | C36: 11599.1 | D36: 8188.9 | E36: 6699.7 | F36: 5808.9 | G36: 4505 | I36: 13646 | J36: 9634 | K36: 7882 | L36: 6834 | M36: 5300 | O36: 11599.1 | P36: 8188.9 | Q36: 6699.7 | R36: 5808.9 | S36: 4505
A37: 49 | C37: 11866.85 | D37: 8379.3 | E37: 6851.85 | F37: 5941.5 | G37: 4607 | I37: 13961 | J37: 9858 | K37: 8061 | L37: 6990 | M37: 5420 | O37: 11866.85 | P37: 8379.3 | Q37: 6851.85 | R37: 5941.5 | S37: 4607
A38: 50 | C38: 12138 | D38: 8571.4 | E38: 7007.4 | F38: 6076.65 | G38: 4712.4 | I38: 14280 | J38: 10084 | K38: 8244 | L38: 7149 | M38: 5544 | O38: 12138 | P38: 8571.4 | Q38: 7007.4 | R38: 6076.65 | S38: 4712.4
A39: 51 | C39: 12415.95 | D39: 8768.6 | E39: 7167.2 | F39: 6214.35 | G39: 4818.65 | I39: 14607 | J39: 10316 | K39: 8432 | L39: 7311 | M39: 5669 | O39: 12415.95 | P39: 8768.6 | Q39: 7167.2 | R39: 6214.35 | S39: 4818.65
A40: 52 | C40: 12698.15 | D40: 8970.05 | E40: 7326.15 | F40: 6352.05 | G40: 4927.45 | I40: 14939 | J40: 10553 | K40: 8619 | L40: 7473 | M40: 5797 | O40: 12698.15 | P40: 8970.05 | Q40: 7326.15 | R40: 6352.05 | S40: 4927.45
A41: 53 | C41: 12987.15 | D41: 9177.45 | E41: 7492.75 | F41: 6496.55 | G41: 5038.8 | I41: 15279 | J41: 10797 | K41: 8815 | L41: 7643 | M41: 5928 | O41: 12987.15 | P41: 9177.45 | Q41: 7492.75 | R41: 6496.55 | S41: 5038.8
A42: 54 | C42: 13281.25 | D42: 9386.55 | E42: 7660.2 | F42: 6641.9 | G42: 5151.85 | I42: 15625 | J42: 11043 | K42: 9012 | L42: 7814 | M42: 6061 | O42: 13281.25 | P42: 9386.55 | Q42: 7660.2 | R42: 6641.9 | S42: 5151.85
A43: 55 | C43: 13580.45 | D43: 9599.05 | E43: 7832.75 | F43: 6791.5 | G43: 5267.45 | I43: 15977 | J43: 11293 | K43: 9215 | L43: 7990 | M43: 6197 | O43: 13580.45 | P43: 9599.05 | Q43: 7832.75 | R43: 6791.5 | S43: 5267.45
A44: 56 | C44: 13883.05 | D44: 9815.8 | E44: 8007.85 | F44: 6943.65 | G44: 5385.6 | I44: 16333 | J44: 11548 | K44: 9421 | L44: 8169 | M44: 6336 | O44: 13883.05 | P44: 9815.8 | Q44: 8007.85 | R44: 6943.65 | S44: 5385.6
A45: 57 | C45: 14194.15 | D45: 10036.8 | E45: 8186.35 | F45: 7097.5 | G45: 5504.6 | I45: 16699 | J45: 11808 | K45: 9631 | L45: 8350 | M45: 6476 | O45: 14194.15 | P45: 10036.8 | Q45: 8186.35 | R45: 7097.5 | S45: 5504.6
A46: 58 | C46: 14509.5 | D46: 10262.05 | E46: 8368.25 | F46: 7255.6 | G46: 5627 | I46: 17070 | J46: 12073 | K46: 9845 | L46: 8536 | M46: 6620 | O46: 14509.5 | P46: 10262.05 | Q46: 8368.25 | R46: 7255.6 | S46: 5627
A47: 59 | C47: 14829.1 | D47: 10491.55 | E47: 8552.7 | F47: 7416.25 | G47: 5751.1 | I47: 17446 | J47: 12343 | K47: 10062 | L47: 8725 | M47: 6766 | O47: 14829.1 | P47: 10491.55 | Q47: 8552.7 | R47: 7416.25 | S47: 5751.1
A48: 60 | C48: 15154.65 | D48: 10725.3 | E48: 8742.25 | F48: 7579.45 | G48: 5878.6 | I48: 17829 | J48: 12618 | K48: 10285 | L48: 8917 | M48: 6916 | O48: 15154.65 | P48: 10725.3 | Q48: 8742.25 | R48: 7579.45 | S48: 5878.6
A49: 61 | C49: 16865.7 | D49: 11951.85 | E49: 9735.9 | F49: 8442.2 | G49: 6548.4 | I49: 19842 | J49: 14061 | K49: 11454 | L49: 9932 | M49: 7704 | O49: 16865.7 | P49: 11951.85 | Q49: 9735.9 | R49: 8442.2 | S49: 6548.4
A50: 62 | C50: 18709.35 | D50: 13280.4 | E50: 10815.4 | F50: 9378.05 | G50: 7272.6 | I50: 22011 | J50: 15624 | K50: 12724 | L50: 11033 | M50: 8556 | O50: 18709.35 | P50: 13280.4 | Q50: 10815.4 | R50: 9378.05 | S50: 7272.6
A51: 63 | C51: 20688.15 | D51: 14706.7 | E51: 11977.35 | F51: 10385.3 | G51: 8054.6 | I51: 24339 | J51: 17302 | K51: 14091 | L51: 12218 | M51: 9476 | O51: 20688.15 | P51: 14706.7 | Q51: 11977.35 | R51: 10385.3 | S51: 8054.6
A52: 64 | C52: 22800.4 | D52: 16235 | E52: 13223.45 | F52: 11466.5 | G52: 8893.55 | I52: 26824 | J52: 19100 | K52: 15557 | L52: 13490 | M52: 10463 | O52: 22800.4 | P52: 16235 | Q52: 13223.45 | R52: 11466.5 | S52: 8893.55
A53: 65 | C53: 25046.1 | D53: 17862.75 | E53: 14554.55 | F53: 12619.95 | G53: 9787.75 | I53: 29466 | J53: 21015 | K53: 17123 | L53: 14847 | M53: 11515 | O53: 25046.1 | P53: 17862.75 | Q53: 14554.55 | R53: 12619.95 | S53: 9787.75
A54: 66 | C54: 27426.95 | D54: 19589.95 | E54: 15970.65 | F54: 13849.05 | G54: 10740.6 | I54: 32267 | J54: 23047 | K54: 18789 | L54: 16293 | M54: 12636 | O54: 27426.95 | P54: 19589.95 | Q54: 15970.65 | R54: 13849.05 | S54: 10740.6
A55: 67 | C55: 29942.1 | D55: 21417.45 | E55: 17470.05 | F55: 15148.7 | G55: 11748.7 | I55: 35226 | J55: 25197 | K55: 20553 | L55: 17822 | M55: 13822 | O55: 29942.1 | P55: 21417.45 | Q55: 17470.05 | R55: 15148.7 | S55: 11748.7
A56: 68 | C56: 32591.55 | D56: 23346.1 | E56: 19052.75 | F56: 16520.6 | G56: 12812.9 | I56: 38343 | J56: 27466 | K56: 22415 | L56: 19436 | M56: 15074 | O56: 32591.55 | P56: 23346.1 | Q56: 19052.75 | R56: 16520.6 | S56: 12812.9
A57: 69 | C57: 35373.6 | D57: 25374.2 | E57: 20722.15 | F57: 17968.15 | G57: 13934.9 | I57: 41616 | J57: 29852 | K57: 24379 | L57: 21139 | M57: 16394 | O57: 35373.6 | P57: 25374.2 | Q57: 20722.15 | R57: 17968.15 | S57: 13934.9
A58: 70 | C58: 38291.65 | D58: 27503.45 | E58: 22474.85 | F58: 19487.95 | G58: 15114.7 | I58: 45049 | J58: 32357 | K58: 26441 | L58: 22927 | M58: 17782 | O58: 38291.65 | P58: 27503.45 | Q58: 22474.85 | R58: 19487.95 | S58: 15114.7
A59: 71 | C59: 41344 | D59: 29732.15 | E59: 24311.7 | F59: 21080.85 | G59: 16349.75 | I59: 48640 | J59: 34979 | K59: 28602 | L59: 24801 | M59: 19235 | O59: 41344 | P59: 29732.15 | Q59: 24311.7 | R59: 21080.85 | S59: 16349.75
A60: 72 | C60: 44528.95 | D60: 32062.85 | E60: 26232.7 | F60: 22746 | G60: 17640.9 | I60: 52387 | J60: 37721 | K60: 30862 | L60: 26760 | M60: 20754 | O60: 44528.95 | P60: 32062.85 | Q60: 26232.7 | R60: 22746 | S60: 17640.9
A61: 73 | C61: 47848.2 | D61: 34491.3 | E61: 28237 | F61: 24484.25 | G61: 18989 | I61: 56292 | J61: 40578 | K61: 33220 | L61: 28805 | M61: 22340 | O61: 47848.2 | P61: 34491.3 | Q61: 28237 | R61: 24484.25 | S61: 18989
A62: 74 | C62: 51302.6 | D62: 37020.9 | E62: 30327.15 | F62: 26297.3 | G62: 20394.9 | I62: 60356 | J62: 43554 | K62: 35679 | L62: 30938 | M62: 23994 | O62: 51302.6 | P62: 37020.9 | Q62: 30327.15 | R62: 26297.3 | S62: 20394.9
A63: 75 | C63: 54890.45 | D63: 39651.65 | E63: 32501.45 | F63: 28181.75 | G63: 21856.05 | I63: 64577 | J63: 46649 | K63: 38237 | L63: 33155 | M63: 25713 | O63: 54890.45 | P63: 39651.65 | Q63: 32501.45 | R63: 28181.75 | S63: 21856.05
A64: 76 | C64: 54890.45 | D64: 39651.65 | E64: 32501.45 | F64: 28181.75 | G64: 21856.05 | I64: 64577 | J64: 46649 | K64: 38237 | L64: 33155 | M64: 25713 | O64: 54890.45 | P64: 39651.65 | Q64: 32501.45 | R64: 28181.75 | S64: 21856.05
A65: 77 | C65: 54890.45 | D65: 39651.65 | E65: 32501.45 | F65: 28181.75 | G65: 21856.05 | I65: 64577 | J65: 46649 | K65: 38237 | L65: 33155 | M65: 25713 | O65: 54890.45 | P65: 39651.65 | Q65: 32501.45 | R65: 28181.75 | S65: 21856.05
A66: 78 | C66: 54890.45 | D66: 39651.65 | E66: 32501.45 | F66: 28181.75 | G66: 21856.05 | I66: 64577 | J66: 46649 | K66: 38237 | L66: 33155 | M66: 25713 | O66: 54890.45 | P66: 39651.65 | Q66: 32501.45 | R66: 28181.75 | S66: 21856.05
A67: 79 | C67: 54890.45 | D67: 39651.65 | E67: 32501.45 | F67: 28181.75 | G67: 21856.05 | I67: 64577 | J67: 46649 | K67: 38237 | L67: 33155 | M67: 25713 | O67: 54890.45 | P67: 39651.65 | Q67: 32501.45 | R67: 28181.75 | S67: 21856.05
A68: 80 | C68: 54890.45 | D68: 39651.65 | E68: 32501.45 | F68: 28181.75 | G68: 21856.05 | I68: 64577 | J68: 46649 | K68: 38237 | L68: 33155 | M68: 25713 | O68: 54890.45 | P68: 39651.65 | Q68: 32501.45 | R68: 28181.75 | S68: 21856.05
A69: 81 | C69: 54890.45 | D69: 39651.65 | E69: 32501.45 | F69: 28181.75 | G69: 21856.05 | I69: 64577 | J69: 46649 | K69: 38237 | L69: 33155 | M69: 25713 | O69: 54890.45 | P69: 39651.65 | Q69: 32501.45 | R69: 28181.75 | S69: 21856.05
A70: 82 | C70: 54890.45 | D70: 39651.65 | E70: 32501.45 | F70: 28181.75 | G70: 21856.05 | I70: 64577 | J70: 46649 | K70: 38237 | L70: 33155 | M70: 25713 | O70: =I70*0.85 -> 54890.45 | P70: 39651.65 | Q70: 32501.45 | R70: 28181.75 | S70: 21856.05
A71: 83 | C71: =O71 -> 54890.45 | D71: =P71 -> 39651.65 | E71: =Q71 -> 32501.45 | F71: =R71 -> 28181.75 | G71: =S71 -> 21856.05 | I71: 64577 | J71: 46649 | K71: 38237 | L71: 33155 | M71: 25713 | O71: 54890.45 | P71: 39651.65 | Q71: 32501.45 | R71: 28181.75 | S71: 21856.05
A72: 84 | B72: o más | C72: 54890.45 | D72: 39651.65 | E72: 32501.45 | F72: 28181.75 | G72: 21856.05 | I72: 64577 | J72: 46649 | K72: 38237 | L72: 33155 | M72: 25713 | O72: 54890.45 | P72: 39651.65 | Q72: 32501.45 | R72: 28181.75 | S72: 21856.05
A73: 1 | B73: Hijo | C73: 2838.15 | D73: 2032.35 | E73: 1721.25 | F73: 1492.6 | G73: 1158.55 | I73: 3339 | J73: 2391 | K73: 2025 | L73: 1756 | M73: 1363 | O73: 2838.15 | P73: 2032.35 | Q73: 1721.25 | R73: 1492.6 | S73: 1158.55
A74: 2 | B74: Hijos | C74: 4823.75 | D74: 3455.25 | E74: 2925.7 | F74: 2536.4 | G74: 1968.6 | I74: 5675 | J74: 4065 | K74: 3442 | L74: 2984 | M74: 2316 | O74: 4823.75 | P74: 3455.25 | Q74: 2925.7 | R74: 2536.4 | S74: 1968.6
A75: 3 | B75: Hijos o más | C75: 6809.35 | D75: 4877.3 | E75: 4131 | F75: 3581.05 | G75: 2777.8 | I75: 8011 | J75: 5738 | K75: 4860 | L75: 4213 | M75: 3268 | O75: 6809.35 | P75: 4877.3 | Q75: 4131 | R75: 3581.05 | S75: 2777.8
A77: BUPA GLOBAL ELITE - MENSUALES
A78: EDAD
C79: 1000 | D79: 2000 | E79: 3500
A80: 18 | C80: =C6*$K$2 -> 588.4946667 | D80: =D6*$K$2 -> 421.498 | E80: 356.9206667 | F80: 309.4793333 | G80: 240.0626667
A81: 19 | C81: =C7*$K$2 -> 596.2693333 | D81: 426.5753333 | E81: 360.6493333 | F81: 312.8113333 | G81: 242.6013333
A82: 20 | C82: =C8*$K$2 -> 604.2026667 | D82: 431.97 | E82: 364.6953333 | F82: 316.2226667 | G82: 245.2193333
A83: 21 | C83: =C9*$K$2 -> 612.374 | D83: 437.444 | E83: 368.8206667 | F83: 319.7926667 | G83: 247.996
A84: 22 | C84: =C10*$K$2 -> 620.8626667 | D84: 443.156 | E84: 373.0253333 | F84: 323.442 | G84: 250.7726667
A85: 23 | C85: =C11*$K$2 -> 629.8273333 | D85: 448.868 | E85: 377.5473333 | F85: 327.4086667 | G85: 253.946
A86: 24 | C86: =C12*$K$2 -> 638.7126667 | D86: 454.9766667 | E86: 382.0693333 | F86: 331.296 | G86: 256.9606667
A87: 25 | C87: =C13*$K$2 -> 647.9946667 | D87: 461.3233333 | E87: 386.75 | F87: 335.4213333 | G87: 260.134
A88: 26 | C88: =C14*$K$2 -> 661.3226667 | D88: 470.3673333 | E88: 393.652 | F88: 341.4506667 | G88: 264.7353333
A89: 27 | C89: =C15*$K$2 -> 675.206 | D89: 479.808 | E89: 400.9506667 | F89: 347.5593333 | G89: 269.654
A90: 28 | C90: =C16*$K$2 -> 689.486 | D90: 489.4866667 | E90: 408.408 | F90: 354.144 | G90: 274.5726667
A91: 29 | C91: =C17*$K$2 -> 704.48 | D91: 499.6413333 | E91: 416.262 | F91: 360.9666667 | G91: 279.9673333
A92: 30 | C92: =C18*$K$2 -> 719.8706667 | D92: 510.3513333 | E92: 424.5126667 | F92: 368.1066667 | G92: 285.5206667
A93: 31 | C93: =C19*$K$2 -> 735.8166667 | D93: 521.22 | E93: 433.0806667 | F93: 375.4846667 | G93: 291.312
A94: 32 | C94: =C20*$K$2 -> 752.1593333 | D94: 532.5646667 | E94: 441.728 | F94: 383.0213333 | G94: 296.9446667
A95: 33 | C95: =C21*$K$2 -> 769.0573333 | D95: 544.2266667 | E95: 450.9306667 | F95: 390.9546667 | G95: 303.2913333
A96: 34 | C96: =C22*$K$2 -> 786.5106667 | D96: 556.2853333 | E96: 460.292 | F96: 399.126 | G96: 309.4793333
A97: 35 | C97: =C23*$K$2 -> 804.2813333 | D97: 568.6613333 | E97: 470.1293333 | F97: 407.694 | G97: 316.2226667
A98: 36 | C98: =C24*$K$2 -> 822.6866667 | D98: 581.434 | E98: 480.1253333 | F98: 416.262 | G98: 322.8866667
A99: 37 | C99: =C25*$K$2 -> 841.6473333 | D99: 594.762 | E99: 490.4386667 | F99: 425.3853333 | G99: 329.868
A100: 38 | C100: =C26*$K$2 -> 861.0046667 | D100: 608.1693333 | E100: 501.1486667 | F100: 434.6673333 | G100: 337.0873333
A101: 39 | C101: =C27*$K$2 -> 880.9966667 | D101: 622.2113333 | E101: 512.176 | F101: 444.108 | G101: 344.386
A102: 40 | C102: =C28*$K$2 -> 901.3853333 | D102: 636.4913333 | E102: 523.4413333 | F102: 453.866 | G102: 352.0813333
A103: 41 | C103: =C29*$K$2 -> 922.3293333 | D103: 651.168 | E103: 535.1033333 | F103: 464.0206667 | G103: 359.9353333
A104: 42 | C104: =C30*$K$2 -> 943.67 | D104: 666.162 | E104: 547.0826667 | F104: 474.334 | G104: 367.948
A105: 43 | C105: =C31*$K$2 -> 965.4866667 | D105: 681.7113333 | E105: 559.3793333 | F105: 485.044 | G105: 376.1986667
A106: 44 | C106: =C32*$K$2 -> 987.938 | D106: 697.34 | E106: 571.8346667 | F106: 495.9126667 | G106: 384.6873333
A107: 45 | C107: =C33*$K$2 -> 1010.865333 | D107: 713.6033333 | E107: 584.8453333 | F107: 507.0193333 | G107: 393.2553333
A108: 46 | C108: =C34*$K$2 -> 1034.268667 | D108: 730.1046667 | E108: 598.094 | F108: 518.6813333 | G108: 402.1406667
A109: 47 | C109: =C35*$K$2 -> 1058.148 | D109: 747.1613333 | E109: 611.5013333 | F109: 530.1846667 | G109: 411.264
A110: 48 | C110: =C36*$K$2 -> 1082.582667 | D110: 764.2973333 | E110: 625.3053333 | F110: 542.164 | G110: 420.4666667
A111: 49 | C111: =C37*$K$2 -> 1107.572667 | D111: 782.068 | E111: 639.506 | F111: 554.54 | G111: 429.9866667
A112: 50 | C112: =C38*$K$2 -> 1132.88 | D112: 799.9973333 | E112: 654.024 | F112: 567.154 | G112: 439.824
A113: 51 | C113: =C39*$K$2 -> 1158.822 | D113: 818.4026667 | E113: 668.9386667 | F113: 580.006 | G113: 449.7406667
A114: 52 | C114: =C40*$K$2 -> 1185.160667 | D114: 837.2046667 | E114: 683.774 | F114: 592.858 | G114: 459.8953333
A115: 53 | C115: =C41*$K$2 -> 1212.134 | D115: 856.562 | E115: 699.3233333 | F115: 606.3446667 | G115: 470.288
A116: 54 | C116: =C42*$K$2 -> 1239.583333 | D116: 876.078 | E116: 714.952 | F116: 619.9106667 | G116: 480.8393333
A117: 55 | C117: =C43*$K$2 -> 1267.508667 | D117: 895.9113333 | E117: 731.0566667 | F117: 633.8733333 | G117: 491.6286667
A118: 56 | C118: =C44*$K$2 -> 1295.751333 | D118: 916.1413333 | E118: 747.3993333 | F118: 648.074 | G118: 502.656
A119: 57 | C119: =C45*$K$2 -> 1324.787333 | D119: 936.768 | E119: 764.0593333 | F119: 662.4333333 | G119: 513.7626667
A120: 58 | C120: =C46*$K$2 -> 1354.22 | D120: 957.7913333 | E120: 781.0366667 | F120: 677.1893333 | G120: 525.1866667
A121: 59 | C121: =C47*$K$2 -> 1384.049333 | D121: 979.2113333 | E121: 798.252 | F121: 692.1833333 | G121: 536.7693333
A122: 60 | C122: =C48*$K$2 -> 1414.434 | D122: 1001.028 | E122: 815.9433333 | F122: 707.4153333 | G122: 548.6693333
A123: 61 | C123: =C49*$K$2 -> 1574.132 | D123: 1115.506 | E123: 908.684 | F123: 787.9386667 | G123: 611.184
A124: 62 | C124: =C50*$K$2 -> 1746.206 | D124: 1239.504 | E124: 1009.437333 | F124: 875.2846667 | G124: 678.776
A125: 63 | C125: =C51*$K$2 -> 1930.894 | D125: 1372.625333 | E125: 1117.886 | F125: 969.2946667 | G125: 751.7626667
A126: 64 | C126: =C52*$K$2 -> 2128.037333 | D126: 1515.266667 | E126: 1234.188667 | F126: 1070.206667 | G126: 830.0646667
A127: 65 | C127: =C53*$K$2 -> 2337.636 | D127: 1667.19 | E127: 1358.424667 | F127: 1177.862 | G127: 913.5233333
A128: 66 | C128: =C54*$K$2 -> 2559.848667 | D128: 1828.395333 | E128: 1490.594 | F128: 1292.578 | G128: 1002.456
A129: 67 | C129: =C55*$K$2 -> 2794.596 | D129: 1998.962 | E129: 1630.538 | F129: 1413.878667 | G129: 1096.545333
A130: 68 | C130: =C56*$K$2 -> 3041.878 | D130: 2178.969333 | E130: 1778.256667 | F130: 1541.922667 | G130: 1195.870667
A131: 69 | C131: =C57*$K$2 -> 3301.536 | D131: 2368.258667 | E131: 1934.067333 | F131: 1677.027333 | G131: 1300.590667
A132: 70 | C132: =C58*$K$2 -> 3573.887333 | D132: 2566.988667 | E132: 2097.652667 | F132: 1818.875333 | G132: 1410.705333
A133: 71 | C133: =C59*$K$2 -> 3858.773333 | D133: 2775.000667 | E133: 2269.092 | F133: 1967.546 | G133: 1525.976667
A134: 72 | C134: =C60*$K$2 -> 4156.035333 | D134: 2992.532667 | E134: 2448.385333 | F134: 2122.96 | G134: 1646.484
A135: 73 | C135: =C61*$K$2 -> 4465.832 | D135: 3219.188 | E135: 2635.453333 | F135: 2285.196667 | G135: 1772.306667
A136: 74 | C136: =C62*$K$2 -> 4788.242667 | D136: 3455.284 | E136: 2830.534 | F136: 2454.414667 | G136: 1903.524
A137: 75 | C137: =C63*$K$2 -> 5123.108667 | D137: 3700.820667 | E137: 3033.468667 | F137: 2630.296667 | G137: 2039.898
A138: 76 | C138: =C64*$K$2 -> 5123.108667 | D138: 3700.820667 | E138: 3033.468667 | F138: 2630.296667 | G138: 2039.898
A139: 77 | C139: =C65*$K$2 -> 5123.108667 | D139: 3700.820667 | E139: 3033.468667 | F139: 2630.296667 | G139: 2039.898
A140: 78 | C140: =C66*$K$2 -> 5123.108667 | D140: 3700.820667 | E140: 3033.468667 | F140: 2630.296667 | G140: 2039.898
A141: 79 | C141: =C67*$K$2 -> 5123.108667 | D141: 3700.820667 | E141: 3033.468667 | F141: 2630.296667 | G141: 2039.898
A142: 80 | C142: =C68*$K$2 -> 5123.108667 | D142: 3700.820667 | E142: 3033.468667 | F142: 2630.296667 | G142: 2039.898
A143: 81 | C143: =C69*$K$2 -> 5123.108667 | D143: 3700.820667 | E143: 3033.468667 | F143: 2630.296667 | G143: 2039.898
A144: 82 | C144: =C70*$K$2 -> 5123.108667 | D144: 3700.820667 | E144: 3033.468667 | F144: 2630.296667 | G144: 2039.898
A145: 83 | C145: =C71*$K$2 -> 5123.108667 | D145: 3700.820667 | E145: 3033.468667 | F145: 2630.296667 | G145: 2039.898
A146: 84 | B146: o más | C146: =C72*$K$2 -> 5123.108667 | D146: 3700.820667 | E146: 3033.468667 | F146: 2630.296667 | G146: 2039.898
A147: 1 | B147: Hijo | C147: =C73*$K$2 -> 264.894 | D147: 189.686 | E147: 160.65 | F147: 139.3093333 | G147: 108.1313333
A148: 2 | B148: Hijos | C148: =C74*$K$2 -> 450.2166667 | D148: 322.49 | E148: 273.0653333 | F148: 236.7306667 | G148: 183.736
A149: 3 | B149: Hijos o más | C149: =C75*$K$2 -> 635.5393333 | D149: 455.2146667 | E149: 385.56 | F149: 334.2313333 | G149: 259.2613333
A151: BUPA GLOBAL PREMIER
A152: TARIFAS ANUALES
A153: EDAD
C154: 2000 | D154: 3500 | E154: 5000 | F154: 10000
A155: 18 | C155: =N155 -> 3265.72 | D155: =O155 -> 2772.48 | E155: 2404.64 | F155: 1788.28 | I155: 4297 | J155: 3648 | K155: 3164 | L155: 2353 | N155: =I155*0.76 -> 3265.72 | O155: =J155*0.76 -> 2772.48 | P155: 2404.64 | Q155: 1788.28
A156: 19 | C156: =N156 -> 3306.76 | D156: =O156 -> 2802.12 | E156: =P156 -> 2427.44 | F156: =Q156 -> 1806.52 | I156: 4351 | J156: 3687 | K156: 3194 | L156: 2377 | N156: =I156*0.76 -> 3306.76 | O156: =J156*0.76 -> 2802.12 | P156: =K156*0.76 -> 2427.44 | Q156: =L156*0.76 -> 1806.52
A157: 20 | C157: 3347.8 | D157: 2832.52 | E157: 2451.76 | F157: 1824 | I157: 4405 | J157: 3727 | K157: 3226 | L157: 2400 | N157: 3347.8 | O157: 2832.52 | P157: 2451.76 | Q157: 1824
A158: 21 | C158: 3389.6 | D158: 2864.44 | E158: 2476.84 | F158: 1843 | I158: 4460 | J158: 3769 | K158: 3259 | L158: 2425 | N158: 3389.6 | O158: 2864.44 | P158: 2476.84 | Q158: 1843
A159: 22 | C159: 3432.92 | D159: 2897.12 | E159: 2502.68 | F159: 1861.24 | I159: 4517 | J159: 3812 | K159: 3293 | L159: 2449 | N159: 3432.92 | O159: 2897.12 | P159: 2502.68 | Q159: 1861.24
A160: 23 | C160: 3478.52 | D160: 2932.08 | E160: 2530.8 | F160: 1882.52 | I160: 4577 | J160: 3858 | K160: 3330 | L160: 2477 | N160: 3478.52 | O160: 2932.08 | P160: 2530.8 | Q160: 1882.52
A161: 24 | C161: 3526.4 | D161: 2969.32 | E161: 2558.92 | F161: 1903.8 | I161: 4640 | J161: 3907 | K161: 3367 | L161: 2505 | N161: 3526.4 | O161: 2969.32 | P161: 2558.92 | Q161: 1903.8
A162: 25 | C162: 3574.28 | D162: 3004.28 | E162: 2587.8 | F162: 1925.08 | I162: 4703 | J162: 3953 | K162: 3405 | L162: 2533 | N162: 3574.28 | O162: 3004.28 | P162: 2587.8 | Q162: 1925.08
A163: 26 | C163: 3644.96 | D163: 3058.24 | E163: 2630.36 | F163: 1957 | I163: 4796 | J163: 4024 | K163: 3461 | L163: 2575 | N163: 3644.96 | O163: 3058.24 | P163: 2630.36 | Q163: 1957
A164: 27 | C164: 3717.92 | D164: 3114.48 | E164: 2676.72 | F164: 1991.2 | I164: 4892 | J164: 4098 | K164: 3522 | L164: 2620 | N164: 3717.92 | O164: 3114.48 | P164: 2676.72 | Q164: 1991.2
A165: 28 | C165: 3793.92 | D165: 3173.76 | E165: 2723.08 | F165: 2026.16 | I165: 4992 | J165: 4176 | K165: 3583 | L165: 2666 | N165: 3793.92 | O165: 3173.76 | P165: 2723.08 | Q165: 2026.16
A166: 29 | C166: 3872.96 | D166: 3233.04 | E166: 2772.48 | F166: 2062.64 | I166: 5096 | J166: 4254 | K166: 3648 | L166: 2714 | N166: 3872.96 | O166: 3233.04 | P166: 2772.48 | Q166: 2062.64
A167: 30 | C167: 3955.04 | D167: 3296.88 | E167: 2824.92 | F167: 2101.4 | I167: 5204 | J167: 4338 | K167: 3717 | L167: 2765 | N167: 3955.04 | O167: 3296.88 | P167: 2824.92 | Q167: 2101.4
A168: 31 | C168: 4039.4 | D168: 3363.76 | E168: 2876.6 | F168: 2140.16 | I168: 5315 | J168: 4426 | K168: 3785 | L168: 2816 | N168: 4039.4 | O168: 3363.76 | P168: 2876.6 | Q168: 2140.16
A169: 32 | C169: 4127.56 | D169: 3430.64 | E169: 2932.84 | F169: 2181.96 | I169: 5431 | J169: 4514 | K169: 3859 | L169: 2871 | N169: 4127.56 | O169: 3430.64 | P169: 2932.84 | Q169: 2181.96
A170: 33 | C170: 4217.24 | D170: 3502.08 | E170: 2990.6 | F170: 2224.52 | I170: 5549 | J170: 4608 | K170: 3935 | L170: 2927 | N170: 4217.24 | O170: 3502.08 | P170: 2990.6 | Q170: 2224.52
A171: 34 | C171: 4311.48 | D171: 3575.8 | E171: 3051.4 | F171: 2270.12 | I171: 5673 | J171: 4705 | K171: 4015 | L171: 2987 | N171: 4311.48 | O171: 3575.8 | P171: 3051.4 | Q171: 2270.12
A172: 35 | C172: 4408 | D172: 3651.04 | E172: 3112.96 | F172: 2315.72 | I172: 5800 | J172: 4804 | K172: 4096 | L172: 3047 | N172: 4408 | O172: 3651.04 | P172: 3112.96 | Q172: 2315.72
A173: 36 | C173: 4506.8 | D173: 3729.32 | E173: 3176.04 | F173: 2362.08 | I173: 5930 | J173: 4907 | K173: 4179 | L173: 3108 | N173: 4506.8 | O173: 3729.32 | P173: 3176.04 | Q173: 2362.08
A174: 37 | C174: 4608.64 | D174: 3809.88 | E174: 3248.24 | F174: 2416.8 | I174: 6064 | J174: 5013 | K174: 4274 | L174: 3180 | N174: 4608.64 | O174: 3809.88 | P174: 3248.24 | Q174: 2416.8
A175: 38 | C175: 4712.76 | D175: 3892.72 | E175: 3331.08 | F175: 2477.6 | I175: 6201 | J175: 5122 | K175: 4383 | L175: 3260 | N175: 4712.76 | O175: 3892.72 | P175: 3331.08 | Q175: 2477.6
A176: 39 | C176: 4822.2 | D176: 3979.36 | E176: 3416.2 | F176: 2541.44 | I176: 6345 | J176: 5236 | K176: 4495 | L176: 3344 | N176: 4822.2 | O176: 3979.36 | P176: 3416.2 | Q176: 2541.44
A177: 40 | C177: 4931.64 | D177: 4066.76 | E177: 3502.84 | F177: 2606.8 | I177: 6489 | J177: 5351 | K177: 4609 | L177: 3430 | N177: 4931.64 | O177: 4066.76 | P177: 3502.84 | Q177: 2606.8
A178: 41 | C178: 5045.64 | D178: 4156.44 | E178: 3593.28 | F178: 2673.68 | I178: 6639 | J178: 5469 | K178: 4728 | L178: 3518 | N178: 5045.64 | O178: 4156.44 | P178: 3593.28 | Q178: 2673.68
A179: 42 | C179: 5163.44 | D179: 4249.92 | E179: 3685.24 | F179: 2742.08 | I179: 6794 | J179: 5592 | K179: 4849 | L179: 3608 | N179: 5163.44 | O179: 4249.92 | P179: 3685.24 | Q179: 2742.08
A180: 43 | C180: 5281.24 | D180: 4344.92 | E180: 3778.72 | F180: 2811.24 | I180: 6949 | J180: 5717 | K180: 4972 | L180: 3699 | N180: 5281.24 | O180: 4344.92 | P180: 3778.72 | Q180: 2811.24
A181: 44 | C181: 5404.36 | D181: 4442.2 | E181: 3875.24 | F181: 2882.68 | I181: 7111 | J181: 5845 | K181: 5099 | L181: 3793 | N181: 5404.36 | O181: 4442.2 | P181: 3875.24 | Q181: 2882.68
A182: 45 | C182: 5530.52 | D182: 4542.52 | E182: 3974.04 | F182: 2957.16 | I182: 7277 | J182: 5977 | K182: 5229 | L182: 3891 | N182: 5530.52 | O182: 4542.52 | P182: 3974.04 | Q182: 2957.16
A183: 46 | C183: 5658.2 | D183: 4645.12 | E183: 4076.64 | F183: 3031.64 | I183: 7445 | J183: 6112 | K183: 5364 | L183: 3989 | N183: 5658.2 | O183: 4645.12 | P183: 4076.64 | Q183: 3031.64
A184: 47 | C184: 5790.44 | D184: 4750 | E184: 4180 | F184: 3109.16 | I184: 7619 | J184: 6250 | K184: 5500 | L184: 4091 | N184: 5790.44 | O184: 4750 | P184: 4180 | Q184: 3109.16
A185: 48 | C185: 5923.44 | D185: 4857.16 | E185: 4286.4 | F185: 3188.2 | I185: 7794 | J185: 6391 | K185: 5640 | L185: 4195 | N185: 5923.44 | O185: 4857.16 | P185: 4286.4 | Q185: 3188.2
A186: 49 | C186: 6060.24 | D186: 4966.6 | E186: 4394.32 | F186: 3268 | I186: 7974 | J186: 6535 | K186: 5782 | L186: 4300 | N186: 6060.24 | O186: 4966.6 | P186: 4394.32 | Q186: 3268
A187: 50 | C187: 6200.08 | D187: 5079.84 | E187: 4503.76 | F187: 3350.84 | I187: 8158 | J187: 6684 | K187: 5926 | L187: 4409 | N187: 6200.08 | O187: 5079.84 | P187: 4503.76 | Q187: 3350.84
A188: 51 | C188: 6342.96 | D188: 5194.6 | E188: 4616.24 | F188: 3434.44 | I188: 8346 | J188: 6835 | K188: 6074 | L188: 4519 | N188: 6342.96 | O188: 5194.6 | P188: 4616.24 | Q188: 3434.44
A189: 52 | C189: 6488.88 | D189: 5311.64 | E189: 4732.52 | F189: 3520.32 | I189: 8538 | J189: 6989 | K189: 6227 | L189: 4632 | N189: 6488.88 | O189: 5311.64 | P189: 4732.52 | Q189: 3520.32
A190: 53 | C190: 6637.08 | D190: 5432.48 | E190: 4850.32 | F190: 3607.72 | I190: 8733 | J190: 7148 | K190: 6382 | L190: 4747 | N190: 6637.08 | O190: 5432.48 | P190: 4850.32 | Q190: 3607.72
A191: 54 | C191: 6787.56 | D191: 5554.08 | E191: 4969.64 | F191: 3696.64 | I191: 8931 | J191: 7308 | K191: 6539 | L191: 4864 | N191: 6787.56 | O191: 5554.08 | P191: 4969.64 | Q191: 3696.64
A192: 55 | C192: 6942.6 | D192: 5677.96 | E192: 5092 | F192: 3787.84 | I192: 9135 | J192: 7471 | K192: 6700 | L192: 4984 | N192: 6942.6 | O192: 5677.96 | P192: 5092 | Q192: 3787.84
A193: 56 | C193: 7099.92 | D193: 5805.64 | E193: 5216.64 | F193: 3881.32 | I193: 9342 | J193: 7639 | K193: 6864 | L193: 5107 | N193: 7099.92 | O193: 5805.64 | P193: 5216.64 | Q193: 3881.32
A194: 57 | C194: 7258.76 | D194: 5934.08 | E194: 5342.04 | F194: 3973.28 | I194: 9551 | J194: 7808 | K194: 7029 | L194: 5228 | N194: 7258.76 | O194: 5934.08 | P194: 5342.04 | Q194: 3973.28
A195: 58 | C195: 7422.16 | D195: 6066.32 | E195: 5470.48 | F195: 4069.8 | I195: 9766 | J195: 7982 | K195: 7198 | L195: 5355 | N195: 7422.16 | O195: 6066.32 | P195: 5470.48 | Q195: 4069.8
A196: 59 | C196: 7589.36 | D196: 6200.84 | E196: 5603.48 | F196: 4167.84 | I196: 9986 | J196: 8159 | K196: 7373 | L196: 5484 | N196: 7589.36 | O196: 6200.84 | P196: 5603.48 | Q196: 4167.84
A197: 60 | C197: 7758.08 | D197: 6336.88 | E197: 5736.48 | F197: 4266.64 | I197: 10208 | J197: 8338 | K197: 7548 | L197: 5614 | N197: 7758.08 | O197: 6336.88 | P197: 5736.48 | Q197: 4266.64
A198: 61 | C198: 8645 | D198: 7058.88 | E198: 6438.72 | F198: 4790.28 | I198: 11375 | J198: 9288 | K198: 8472 | L198: 6303 | N198: 8645 | O198: 7058.88 | P198: 6438.72 | Q198: 4790.28
A199: 62 | C199: 9605.64 | D199: 7839.4 | E199: 7201 | F199: 5355.72 | I199: 12639 | J199: 10315 | K199: 9475 | L199: 7047 | N199: 9605.64 | O199: 7839.4 | P199: 7201 | Q199: 5355.72
A200: 63 | C200: 10637.72 | D200: 8682.24 | E200: 8019.52 | F200: 5965.24 | I200: 13997 | J200: 11424 | K200: 10552 | L200: 7849 | N200: 10637.72 | O200: 8682.24 | P200: 8019.52 | Q200: 5965.24
A201: 64 | C201: 11742.76 | D201: 9586.64 | E201: 8896.56 | F201: 6617.32 | I201: 15451 | J201: 12614 | K201: 11706 | L201: 8707 | N201: 11742.76 | O201: 9586.64 | P201: 8896.56 | Q201: 6617.32
A202: 65 | C202: 12920 | D202: 10551.08 | E202: 9831.36 | F202: 7312.72 | I202: 17000 | J202: 13883 | K202: 12936 | L202: 9622 | N202: 12920 | O202: 10551.08 | P202: 9831.36 | Q202: 7312.72
A203: 66 | C203: 14169.44 | D203: 11578.6 | E203: 10824.68 | F203: 8051.44 | I203: 18644 | J203: 15235 | K203: 14243 | L203: 10594 | N203: 14169.44 | O203: 11578.6 | P203: 10824.68 | Q203: 8051.44
... 1275 more rows
